bitfinex/quotes_SOLUSD_20250607
["timestamp","ask_amount","ask_price","bid_price","bid_amount"]
[1749337037337,5.87883185,151.32,151.28,10.82]
[1749337037862,5.87883185,151.31,151.28,10.82]
[1749337038858,18.64964886,151.33,151.29,6.60982219]
[1749337039058,5.87883185,151.31,151.29,6.60982219]
[1749337039358,5.87883185,151.32,151.29,6.60982219]
[1749337043164,26.0,151.34,151.29,6.60982219]
[1749337043165,5.87883185,151.33,151.29,6.60982219]
[1749337043364,26.0,151.34,151.29,12.48865404]
[1749337043658,5.87883185,151.33,151.29,12.48865404]
[1749337043837,5.87883185,151.33,151.29,6.60982219]
[1749337044043,5.87883185,151.32,151.29,6.60982219]
[1749337044348,14.17665614,151.39,151.3,5.87883185]
[1749337044552,14.17665614,151.39,151.32,5.87883185]
[1749337044553,5.87883185,151.37,151.32,5.87883185]
[1749337044742,5.87883185,151.36,151.33,10.82]
[1749337044938,44.64964886,151.38,151.33,10.82]
[1749337044939,5.87883185,151.35,151.33,10.82]
[1749337045550,5.87883185,151.34,151.33,10.82]
[1749337047453,5.87883185,151.35,151.33,10.82]
[1749337049853,85.66964886,151.38,151.32,10.8]
[1749337049854,5.87883185,151.34,151.32,10.8]
[1749337054053,5.87883185,151.35,151.32,17.4083735]
[1749337054864,5.87883185,151.35,151.32,10.8]
[1749337055371,5.87883185,151.34,151.32,10.8]
[1749337057075,5.87883185,151.33,151.32,10.8]
[1749337057571,24.52848071,151.33,151.32,10.8]
[1749337059066,31.13655577,151.33,151.32,10.8]
[1749337062382,18.64964886,151.32,151.28,10.8]
[1749337062560,5.87883185,151.3,151.28,10.8]
[1749337062984,5.87883185,151.29,151.28,10.8]
[1749337063855,5.87883185,151.3,151.28,10.8]
[1749337069091,5.87883185,151.29,151.28,10.8]
[1749337069264,25.25830657,151.32,151.28,10.8]
[1749337069466,5.87883185,151.3,151.28,10.8]
[1749337070072,5.87883185,151.29,151.28,10.8]
[1749337070474,24.52848071,151.29,151.28,10.8]
[1749337071376,22.41203904,151.29,151.28,10.8]
[1749337071786,29.02186123,151.29,151.28,10.8]
[1749337073291,31.13852343,151.29,151.28,10.8]
[1749337081884,25.25947105,151.29,151.28,10.8]
[1749337082115,31.13852343,151.29,151.28,10.8]
[1749337083190,31.13852343,151.29,151.24,10.78]
[1749337083191,18.64964886,151.28,151.24,10.78]
[1749337083401,5.87905238,151.25,151.24,10.78]
[1749337083693,18.64964886,151.28,151.24,10.78]
[1749337083902,5.87905238,151.26,151.24,10.78]
[1749337084411,5.87905238,151.25,151.24,10.78]
[1749337093318,3.76291008,151.25,151.24,10.78]
[1749337102726,51.26000699,151.28,151.24,10.78]
[1749337102900,3.76291008,151.25,151.24,10.78]
[1749337103994,51.26000699,151.28,151.24,10.78]
[1749337104194,3.76291008,151.25,151.24,10.78]
[1749337110034,44.64964886,151.28,151.24,17.3920074]
[1749337110208,3.76291008,151.27,151.24,17.3920074]
[1749337110731,3.76291008,151.26,151.24,17.3920074]
[1749337115715,18.64964886,151.29,151.24,17.3920074]
[1749337116429,3.76291008,151.27,151.24,17.3920074]
[1749337119917,3.76291008,151.26,151.24,17.3920074]
[1749337122537,3.76291008,151.27,151.24,17.3920074]
[1749337130320,3.76291008,151.27,151.25,10.76]
[1749337132355,18.64964886,151.29,151.26,6.61113314]
[1749337132556,3.76291008,151.28,151.26,6.61113314]
[1749337137559,26.0,151.3,151.26,6.61113314]
[1749337137761,3.76291008,151.28,151.26,6.61113314]
[1749337139561,26.0,151.3,151.26,6.61113314]
[1749337139761,3.76291008,151.28,151.26,6.61113314]
[1749337144671,3.76291008,151.28,151.26,17.35113314]
[1749337145663,26.0,151.3,151.26,17.35113314]
[1749337145869,3.76291008,151.28,151.26,17.35113314]
[1749337146260,3.76291008,151.28,151.26,10.74]
[1749337147750,3.76291008,151.28,151.26,17.35101369]
[1749337147954,26.0,151.3,151.26,17.35101369]
[1749337148161,3.76291008,151.28,151.26,17.35101369]
[1749337149580,26.0,151.3,151.26,17.35101369]
[1749337149787,3.76291008,151.28,151.26,17.35101369]
[1749337150582,3.76291008,151.28,151.26,10.74]
[1749337151267,3.76291008,151.28,151.26,17.35102639]
[1749337151585,3.76291008,151.28,151.26,10.74]
[1749337158686,10.37316956,151.28,151.26,10.74]
[1749337160366,3.76291008,151.27,151.26,10.74]
[1749337161969,3.76291008,151.27,151.25,10.74]
[1749337183692,6.60996947,151.29,151.25,10.74]
[1749337184023,3.76291008,151.27,151.25,10.74]
[1749337185422,3.76291008,151.28,151.25,10.74]
[1749337188621,3.76291008,151.28,151.25,17.35138476]
[1749337190693,3.76291008,151.28,151.26,10.72]
[1749337199319,32.60948661,151.3,151.26,10.72]
[1749337199522,3.76291008,151.28,151.26,10.72]
[1749337202925,3.76291008,151.29,151.26,10.72]
[1749337203132,29.76291008,151.3,151.26,17.33112268]
[1749337203299,3.76291008,151.29,151.26,17.33112268]
[1749337203815,3.76291008,151.29,151.26,10.72]
[1749337204225,3.76291008,151.29,151.26,17.33102327]
[1749337205528,3.76291008,151.3,151.26,17.33102327]
[1749337205699,3.76291008,151.3,151.26,21.09393335]
[1749337205902,18.64964886,151.34,151.27,3.76291008]
[1749337206126,3.76291008,151.32,151.28,3.76291008]
[1749337207312,3.76291008,151.33,151.29,10.37273227]
[1749337207514,3.76291008,151.34,151.29,10.37273227]
[1749337207809,3.76291008,151.33,151.29,10.37273227]
[1749337208213,3.76291008,151.32,151.27,6.6106961]
[1749337208523,18.64964886,151.35,151.26,10.72]
[1749337208524,3.76291008,151.3,151.26,10.72]
[1749337209427,3.76291008,151.3,151.26,17.33101966]
[1749337212336,3.76291008,151.29,151.26,17.33101966]
[1749337212719,3.76291008,151.27,151.26,10.72]
[1749337226823,29.02325504,151.27,151.26,10.72]
[1749337231247,18.64964886,151.26,151.23,10.7]
[1749337231443,3.76291008,151.24,151.23,10.7]
[1749337239458,29.02456634,151.24,151.23,10.7]
[1749337239962,18.64964886,151.23,151.19,10.68]
[1749337240130,3.76291008,151.21,151.19,10.68]
[1749337240330,47.4120074,151.24,151.19,10.68]
[1749337240331,18.64964886,151.23,151.19,10.68]
[1749337240658,3.76291008,151.22,151.19,17.29405906]
[1749337243859,18.64964886,151.23,151.19,17.29405906]
[1749337244034,3.76291008,151.22,151.19,17.29405906]
[1749337248460,3.76291008,151.23,151.19,33.82954421]
[1749337248754,40.8,151.24,151.19,33.82954421]
[1749337249153,3.76291008,151.23,151.19,37.59245429]
[1749337250243,3.76291008,151.23,151.19,33.82954421]
[1749337251144,3.76291008,151.22,151.19,33.82954421]
[1749337253347,3.76291008,151.23,151.19,33.82954421]
[1749337253746,3.76291008,151.23,151.19,37.59245429]
[1749337256366,3.76291008,151.23,151.19,33.82954421]
[1749337260375,3.76291008,151.23,151.19,37.59245429]
[1749337260579,3.76291008,151.24,151.2,3.76291008]
[1749337262765,3.76291008,151.24,151.21,6.61331922]
[1749337267570,3.76291008,151.24,151.22,10.64]
[1749337268476,3.76291008,151.23,151.22,10.64]
[1749337271880,18.64964886,151.24,151.22,10.64]
[1749337272086,3.76291008,151.23,151.22,10.64]
[1749337274983,22.41255894,151.23,151.22,10.64]
[1749337275190,29.02500356,151.23,151.22,10.64]
[1749337276982,30.54300356,151.23,151.18,10.64]
[1749337277287,3.76291008,151.19,151.17,10.64]
[1749337277507,3.76291008,151.18,151.17,10.64]
[1749337280371,3.76291008,151.18,151.15,10.66]
[1749337280570,18.64964886,151.19,151.15,10.66]
[1749337280571,3.76291008,151.16,151.15,10.66]
[1749337280771,3.76291008,151.17,151.15,10.66]
[1749337281968,3.76291008,151.17,151.15,17.27567456]
[1749337284901,3.76291008,151.16,151.15,17.27567456]
[1749337285584,3.76291008,151.16,151.15,10.66]
[1749337287875,3.76291008,151.16,151.15,17.27594442]
[1749337288400,3.76291008,151.16,151.15,10.66]
[1749337288996,18.64964886,151.19,151.15,17.27577004]
[1749337289200,3.76291008,151.16,151.15,17.27577004]
[1749337294520,3.76291008,151.17,151.15,17.27577004]
[1749337299825,3.76291008,151.16,151.15,10.66]
[1749337301701,29.02806568,151.16,151.11,6.61752672]
[1749337301906,66.76,151.18,151.11,17.25752672]
[1749337301907,3.76291008,151.13,151.11,17.25752672]
[1749337302616,3.76291008,151.14,151.11,17.25752672]
[1749337302920,3.76291008,151.15,151.11,21.0204368]
[1749337304925,3.76291008,151.15,151.11,17.25752672]
[1749337306231,18.64964886,151.17,151.11,17.25752672]
[1749337306531,3.76291008,151.15,151.11,17.25752672]
[1749337306724,3.76291008,151.14,151.11,17.25752672]
[1749337307228,25.26484691,151.17,151.11,10.64]
[1749337307229,3.76291008,151.12,151.11,10.64]
[1749337307816,22.41255894,151.12,151.11,10.64]
[1749337314345,18.64964886,151.12,151.11,10.64]
[1749337314515,22.41255894,151.12,151.11,10.64]
[1749337316830,18.64964886,151.12,151.11,10.64]
[1749337317035,26.0,151.13,151.11,10.64]
[1749337317241,3.76291008,151.12,151.11,10.64]
[1749337324540,26.0,151.13,151.11,10.64]
[1749337324742,3.76291008,151.12,151.11,10.64]
[1749337329252,26.0,151.13,151.11,10.64]
[1749337329440,3.76291008,151.12,151.11,10.64]
[1749337334633,3.76291008,151.12,151.09,17.23845802]
[1749337334840,3.76291008,151.11,151.09,17.23845802]
[1749337340264,3.76291008,151.12,151.09,17.23845802]
[1749337347158,3.76291008,151.11,151.09,17.23845802]
[1749337349759,26.0,151.13,151.09,17.23845802]
[1749337349969,3.76291008,151.14,151.09,17.23845802]
[1749337350171,66.72,151.15,151.09,17.23845802]
[1749337350352,3.76291008,151.13,151.09,21.0013681]
[1749337350849,3.76291008,151.13,151.09,17.23845802]
[1749337352261,3.76291008,151.13,151.09,33.7848873]
[1749337355182,3.76291008,151.12,151.09,33.7848873]
[1749337356868,3.76291008,151.11,151.09,33.7848873]
[1749337357180,3.76291008,151.11,151.09,17.23845802]
[1749337357379,18.64964886,151.14,151.09,17.23845802]
[1749337357784,3.76291008,151.12,151.09,17.23845802]
[1749337359064,3.76291008,151.12,151.1,10.6]
[1749337361191,3.76291008,151.12,151.11,6.61769571]
[1749337367680,18.64964886,151.14,151.11,6.61769571]
[1749337367986,3.76291008,151.12,151.11,6.61769571]
[1749337368573,18.64964886,151.14,151.11,6.61769571]
[1749337368771,3.76291008,151.12,151.11,6.61769571]
[1749337370301,3.76291008,151.13,151.11,6.61769571]
[1749337370878,3.76291008,151.14,151.11,6.61769571]
[1749337375676,66.7,151.15,151.11,6.61769571]
[1749337375677,3.76291008,151.13,151.11,6.61769571]
[1749337381704,26.0,151.15,151.11,6.61769571]
[1749337381910,29.76291008,151.15,151.11,10.38060579]
[1749337382194,3.76291008,151.15,151.11,10.38060579]
[1749337382696,3.76291008,151.15,151.11,6.61769571]
[1749337383308,3.76291008,151.14,151.11,6.61769571]
[1749337385733,3.76291008,151.13,151.1,17.21802638]
[1749337390395,18.64964886,151.15,151.1,17.21802638]
[1749337390827,3.76291008,151.13,151.1,17.21802638]
[1749337394324,3.76291008,151.14,151.1,17.21802638]
[1749337397540,3.76291008,151.14,151.11,17.19762716]
[1749337398632,3.76291008,151.13,151.11,17.19762716]
[1749337400524,3.76291008,151.13,151.11,10.58]
[1749337403740,3.76291008,151.12,151.11,10.58]
[1749337411248,29.02981674,151.12,151.11,10.58]
[1749337411946,29.02981674,151.12,151.08,10.58]
[1749337412146,3.76291008,151.11,151.08,10.58]
[1749337416851,3.76291008,151.09,151.08,10.58]
[1749337417246,3.76291008,151.1,151.08,10.58]
[1749337418369,3.76291008,151.09,151.08,10.58]
[1749337423551,22.41255894,151.09,151.08,10.58]
[1749337424732,63.07255894,151.09,151.05,6.6202843]
[1749337424934,3.76291008,151.07,151.05,6.6202843]
[1749337426865,3.76291008,151.07,151.04,10.58]
[1749337427738,3.76291008,151.07,151.04,17.20068819]
[1749337428667,3.76291008,151.06,151.04,17.20068819]
[1749337429337,47.2787383,151.09,151.04,10.58]
[1749337429338,3.76291008,151.05,151.04,10.58]
[1749337431046,3.76291008,151.06,151.04,10.58]
[1749337435275,25.26867741,151.08,151.04,10.58]
[1749337435781,3.76291008,151.05,151.04,10.58]
[1749337436483,3.76291008,151.06,151.04,10.58]
[1749337440394,25.26869922,151.08,151.04,10.58]
[1749337440593,3.76291008,151.05,151.04,10.58]
[1749337441276,25.26869922,151.08,151.04,10.58]
[1749337441478,3.76291008,151.05,151.04,10.58]
[1749337442186,25.26869922,151.08,151.04,10.58]
[1749337442503,3.76291008,151.05,151.04,10.58]
[1749337446198,22.41255894,151.05,151.04,10.58]
[1749337447896,18.64964886,151.05,151.04,10.58]
[1749337448102,22.41255894,151.05,151.04,10.58]
[1749337449414,22.41255894,151.05,151.02,12.5]
[1749337450116,18.64964886,151.05,151.02,12.5]
[1749337450413,3.76291008,151.03,151.02,12.5]
[1749337453712,18.64964886,151.04,151.02,12.5]
[1749337453922,3.76291008,151.03,151.02,12.5]
[1749337460125,18.64964886,151.04,151.02,12.5]
[1749337460326,3.76291008,151.03,151.02,12.5]
[1749337466426,3.76291008,151.03,150.91,33.13145464]
[1749337466427,18.64964886,150.99,150.9,14.32291008]
[1749337466619,3.76291008,150.96,150.91,3.76291008]
[1749337466818,26.0,151.0,150.95,3.76291008]
[1749337467015,15.18894217,151.04,150.92,7.9774]
[1749337467016,3.76291008,151.01,150.97,3.76291008]
[1749337467519,3.76291008,151.01,150.97,10.3864061]
[1749337468235,3.76291008,151.01,150.97,6.62349602]
[1749337468436,66.66,151.02,150.97,10.3864061]
[1749337468736,3.76291008,151.01,150.97,10.3864061]
[1749337468948,3.76291008,151.01,150.97,6.62349602]
[1749337470237,16.55073341,151.06,150.98,6.90762721]
[1749337470238,6.61988613,151.06,150.98,6.90762721]
[1749337470430,3.76291008,151.03,150.98,10.67053729]
[1749337470952,3.76291008,151.04,150.99,3.76291008]
[1749337471323,3.76291008,151.04,151.0,6.62251655]
[1749337473739,44.64964886,151.05,151.01,10.56]
[1749337474239,3.76291008,151.04,151.01,10.56]
[1749337478343,3.76291008,151.03,151.01,10.56]
[1749337482660,10.38372902,151.04,151.01,10.56]
[1749337484348,3.76291008,151.04,151.01,10.56]
[1749337486059,10.38369213,151.04,151.01,10.56]
[1749337487061,3.76291008,151.03,151.01,10.56]
[1749337501775,6.62078205,151.04,151.01,10.56]
[1749337501973,3.76291008,151.03,151.01,10.56]
[1749337508992,10.3837225,151.04,151.01,10.56]
[1749337513561,3.76291008,151.04,151.01,10.56]
[1749337513884,29.76291008,151.05,151.01,10.56]
[1749337514177,36.38328382,151.05,151.01,10.56]
[1749337516782,29.76291008,151.05,151.01,10.56]
[1749337518381,36.38365034,151.05,151.01,10.56]
[1749337521290,3.76291008,151.04,151.01,10.56]
[1749337521788,36.38365034,151.05,151.01,10.56]
[1749337523796,32.62074026,151.05,151.01,10.56]
[1749337524087,29.76291008,151.07,151.02,3.76291008]
[1749337524396,3.76291008,151.06,151.01,98.36]
[1749337524692,3.76291008,151.06,151.01,102.12291008]
[1749337525496,10.38305781,151.06,151.01,102.12291008]
[1749337527493,10.38336212,151.05,151.01,98.36]
[1749337528001,10.38336212,151.05,151.01,10.56]
[1749337533214,3.76291008,151.04,151.01,10.56]
[1749337533399,3.76291008,151.02,151.0,98.36]
[1749337533714,3.76291008,151.01,151.0,10.56]
[1749337534679,10.38498808,151.01,151.0,10.56]
[1749337535517,29.03463694,151.01,151.0,10.56]
[1749337543909,29.03463694,151.01,150.89,58.0714639]
[1749337543910,18.64964886,150.97,150.96,10.54]
[1749337544110,18.64964886,150.97,150.93,10.54]
[1749337544111,22.41255894,150.97,150.93,10.54]
[1749337544317,3.76291008,150.94,150.93,10.54]
[1749337549299,10.38805914,150.94,150.93,10.54]
[1749337549914,29.037708,150.94,150.93,10.54]
[1749337551601,18.64964886,150.93,150.89,48.72]
[1749337551801,3.76291008,150.9,150.89,10.56]
[1749337554119,6.62558802,150.93,150.89,10.56]
[1749337554509,3.76291008,150.9,150.89,10.56]
[1749337558931,18.64964886,150.91,150.89,10.56]
[1749337559110,3.76291008,150.9,150.89,10.56]
[1749337559615,18.64964886,150.91,150.89,10.56]
[1749337559818,3.76291008,150.9,150.89,10.56]
[1749337560317,22.41255894,150.9,150.89,10.56]
[1749337560519,18.64964886,150.89,150.85,10.56]
[1749337560822,3.76291008,150.87,150.85,10.56]
[1749337565323,3.76291008,150.87,150.85,17.18905406]
[1749337565525,3.76291008,150.87,150.85,16.18905406]
[1749337566035,18.64964886,150.89,150.85,16.18905406]
[1749337566332,3.76291008,150.89,150.85,16.18905406]
[1749337566541,3.76291008,150.88,150.85,16.18905406]
[1749337567328,47.26696712,150.9,150.85,16.18905406]
[1749337567528,3.76291008,150.88,150.85,16.18905406]
[1749337573743,3.76291008,150.87,150.85,9.56]
[1749337574547,3.76291008,150.86,150.85,9.56]
[1749337576153,3.76291008,150.86,150.81,6.63071027]
[1749337576154,51.05157241,150.86,150.81,10.56]
[1749337576332,3.76291008,150.83,150.81,10.56]
[1749337578428,3.76291008,150.83,150.81,17.19077923]
[1749337579243,3.76291008,150.83,150.81,10.56]
[1749337581635,3.76291008,150.82,150.81,10.56]
[1749337585536,29.0429793,150.82,150.81,10.56]
[1749337585730,22.41255894,150.82,150.81,10.56]
[1749337586455,29.0429793,150.82,150.81,10.56]
[1749337587427,69.7029793,150.82,150.81,10.56]
[1749337589548,18.64964886,150.81,150.77,48.76]
[1749337589754,3.76291008,150.79,150.77,48.76]
[1749337589964,3.76291008,150.8,150.77,48.76]
[1749337590336,3.76291008,150.8,150.77,55.39254498]
[1749337593451,47.29042156,150.82,150.77,55.39254498]
[1749337593452,40.66,150.82,150.77,59.15545506]
[1749337593755,44.42291008,150.82,150.77,59.15545506]
[1749337595068,18.64964886,150.85,150.78,3.76291008]
[1749337595278,3.76291008,150.83,150.79,3.76291008]
[1749337595641,3.76291008,150.84,150.79,3.76291008]
[1749337596041,44.64964886,150.85,150.79,3.76291008]
[1749337596363,3.76291008,150.84,150.8,10.39420981]
[1749337596570,44.64964886,150.85,150.8,10.39420981]
[1749337596571,29.76291008,150.85,150.8,10.39420981]
[1749337596744,3.76291008,150.86,150.81,3.76291008]
[1749337596940,3.76291008,150.86,150.82,14.32291008]
[1749337597354,9.61857792,150.9,150.85,3.76291008]
[1749337597556,3.76291008,150.9,150.85,3.76291008]
[1749337598242,3.76291008,150.9,150.86,6.62866233]
[1749337598582,3.76291008,150.89,150.87,10.56]
[1749337599252,5.90865844,150.88,150.87,10.56]
[1749337602250,5.90865844,150.9,150.87,17.18817219]
[1749337603251,5.90865844,150.89,150.87,10.56]
[1749337604664,5.90865844,150.89,150.87,17.18819529]
[1749337605060,5.90865844,150.89,150.87,10.56]
[1749337615491,5.90865844,150.89,150.87,17.18822072]
[1749337616374,5.90865844,150.89,150.87,10.56]
[1749337618763,24.5583073,150.88,150.87,10.56]
[1749337619092,18.64964886,150.87,150.83,10.54]
[1749337619292,5.90865844,150.84,150.83,10.54]
[1749337624069,31.18784853,150.84,150.83,10.54]
[1749337625684,31.18784853,150.84,150.79,48.74]
[1749337625685,25.27972285,150.83,150.79,48.74]
[1749337625888,5.90865844,150.81,150.79,48.74]
[1749337628692,5.90865844,150.8,150.79,48.74]
[1749337629091,5.90865844,150.8,150.79,10.54]
[1749337634594,31.18960703,150.8,150.79,10.54]
[1749337635800,24.5583073,150.8,150.79,10.54]
[1749337641301,22.43586763,150.8,150.79,10.54]
[1749337642383,29.06716736,150.8,150.79,10.54]
[1749337647495,29.06716736,150.8,150.76,10.54]
[1749337647690,3.78621877,150.78,150.76,10.54]
[1749337649986,25.28094859,150.8,150.76,10.54]
[1749337650185,3.78621877,150.78,150.76,10.54]
[1749337650983,3.78621877,150.77,150.76,10.54]
[1749337652699,25.28053125,150.81,150.76,10.54]
[1749337652902,3.78621877,150.79,150.76,10.54]
[1749337653305,22.43586763,150.8,150.76,10.54]
[1749337653505,3.78621877,150.79,150.76,10.54]
[1749337656224,47.27085822,150.82,150.76,17.17294056]
[1749337656519,0.5,177.87,150.78,3.78621877]
[1749337656520,6.2681,150.87,150.78,3.78621877]
[1749337656694,63.07586763,150.84,150.79,10.41795827]
[1749337656895,22.43586763,150.84,150.79,10.41795827]
[1749337657124,3.78621877,150.83,150.79,10.41795827]
[1749337657425,3.78621877,150.83,150.79,12.54444405]
[1749337657426,5.91270455,150.83,150.79,12.54444405]
[1749337658722,24.56235341,150.84,150.79,12.54444405]
[1749337659720,5.91270455,150.82,150.78,12.54488388]
[1749337660925,5.91270455,150.81,150.78,6.63217933]
[1749337661302,5.91270455,150.81,150.77,14.19606951]
[1749337663024,5.91270455,150.81,150.78,2.48195386]
[1749337663322,24.56235341,150.82,150.77,8.28336496]
[1749337663640,24.56235341,150.82,150.77,14.19606951]
[1749337664130,24.56235341,150.82,150.78,2.48193986]
[1749337664306,24.56235341,150.82,150.77,14.19606951]
[1749337664501,24.56235341,150.82,150.78,2.48193945]
[1749337664738,24.56235341,150.82,150.77,14.19606951]
[1749337664913,24.56235341,150.82,150.78,2.48246001]
[1749337665224,24.56235341,150.82,150.77,14.19606951]
[1749337665606,24.56235341,150.82,150.78,2.48247459]
[1749337665807,24.56235341,150.82,150.77,14.19606951]
[1749337666007,5.91270455,150.81,150.78,9.11464569]
[1749337666306,5.91270455,150.81,150.78,6.63217132]
[1749337668533,5.91270455,150.81,150.78,17.17217132]
[1749337670110,18.64964886,150.82,150.79,2.48331591]
[1749337670436,5.91270455,150.81,150.78,17.17217132]
[1749337670630,5.91270455,150.81,150.79,2.48329981]
[1749337670836,5.91270455,150.81,150.78,17.17217132]
[1749337671143,5.91270455,150.81,150.79,2.48324446]
[1749337671431,5.91270455,150.81,150.78,17.17217132]
[1749337671637,5.91270455,150.81,150.79,2.48324405]
[1749337671819,5.91270455,150.81,150.78,17.17217132]
[1749337672022,5.91270455,150.81,150.79,2.48315729]
[1749337672226,5.91270455,150.81,150.78,17.17217132]
[1749337672648,5.91270455,150.81,150.79,2.48324432]
[1749337672944,5.91270455,150.81,150.78,17.17217132]
[1749337673143,5.91270455,150.81,150.79,2.48324432]
[1749337673316,5.91270455,150.81,150.78,17.17217132]
[1749337673516,5.91270455,150.81,150.79,2.48324449]
[1749337673714,5.91270455,150.81,150.78,17.17217132]
[1749337673916,18.64964886,150.83,150.79,2.48324432]
[1749337674133,5.91270455,150.81,150.78,17.17217132]
[1749337674532,5.91270455,150.81,150.79,2.48327228]
[1749337674714,5.91270455,150.81,150.78,17.17217132]
[1749337674914,5.91270455,150.81,150.79,2.48327207]
[1749337675135,5.91270455,150.81,150.78,17.17217132]
[1749337675337,5.91270455,150.81,150.79,2.48357354]
[1749337675510,5.91270455,150.81,150.78,17.17217132]
[1749337675910,5.91270455,150.81,150.79,2.48355977]
[1749337676129,5.91270455,150.81,150.78,17.17217132]
[1749337676333,5.91270455,150.81,150.79,2.48355997]
[1749337676538,5.91270455,150.81,150.78,17.17217132]
[1749337676714,5.91270455,150.81,150.79,2.48349816]
[1749337676910,5.91270455,150.81,150.78,17.17217132]
[1749337677111,5.91270455,150.81,150.79,2.48351382]
[1749337677315,3.78521735,150.81,150.78,17.17217132]
[1749337677918,3.78521735,150.81,150.79,2.48353348]
[1749337678114,3.78521735,150.81,150.78,17.17217132]
[1749337678431,3.78521735,150.81,150.79,2.48354766]
[1749337678630,3.78521735,150.81,150.78,17.17217132]
[1749337678834,3.78521735,150.81,150.79,2.48374115]
[1749337679141,3.78521735,150.81,150.78,17.17217132]
[1749337679643,3.78521735,150.81,150.79,2.48372677]
[1749337679842,3.78521735,150.81,150.78,17.17217132]
[1749337680045,3.78521735,150.81,150.79,2.48438572]
[1749337680237,3.78521735,150.81,150.78,17.17217132]
[1749337680437,3.78521735,150.81,150.79,2.4843855]
[1749337680648,3.78521735,150.81,150.78,17.17217132]
[1749337680840,3.78521735,150.81,150.79,2.48435813]
[1749337681041,3.78521735,150.81,150.78,17.17217132]
[1749337681427,3.78521735,150.81,150.79,2.48434227]
[1749337681647,3.78521735,150.81,150.78,17.17217132]
[1749337681953,3.78521735,150.82,150.79,2.48443436]
[1749337682248,3.78521735,150.82,150.78,17.17217132]
[1749337682545,3.78521735,150.82,150.79,2.48443416]
[1749337682744,3.78521735,150.82,150.78,17.17217132]
[1749337683137,3.78521735,150.82,150.79,2.48446233]
[1749337683450,3.78521735,150.82,150.78,17.17217132]
[1749337683652,3.78521735,150.82,150.79,2.48443416]
[1749337683850,3.78521735,150.82,150.78,17.17217132]
[1749337684146,3.78521735,150.82,150.79,2.4844296]
[1749337684349,3.78521735,150.82,150.78,17.17217132]
[1749337684546,3.78521735,150.82,150.79,2.48445758]
[1749337684849,66.64,150.85,150.8,3.78521735]
[1749337684850,18.64964886,150.84,150.8,3.78521735]
[1749337685060,22.43486621,150.84,150.81,2.48434662]
[1749337685349,22.43486621,150.84,150.8,3.78521735]
[1749337685519,18.64964886,150.84,150.8,3.78521735]
[1749337685724,22.43486621,150.84,150.81,2.48410665]
[1749337685923,22.43486621,150.84,150.8,3.78521735]
[1749337686123,22.43486621,150.84,150.81,2.48407908]
[1749337686347,22.43486621,150.84,150.8,10.41614214]
[1749337686538,18.64964886,150.84,150.8,10.41614214]
[1749337686860,18.64964886,150.84,150.8,6.63092479]
[1749337687050,26.0,150.85,150.81,6.2675428]
[1749337687226,29.78521735,150.85,150.81,3.78521735]
[1749337687837,29.78521735,150.85,150.82,10.54]
[1749337688337,3.78521735,150.84,150.82,10.54]
[1749337690458,26.0,150.85,150.82,10.54]
[1749337690660,3.78521735,150.84,150.82,10.54]
[1749337694566,26.0,150.85,150.82,10.54]
[1749337694866,3.78521735,150.84,150.82,10.54]
[1749337695037,26.0,150.85,150.82,17.17033814]
[1749337695238,29.78521735,150.85,150.83,2.48204915]
[1749337695436,29.78521735,150.85,150.82,17.17033814]
[1749337696037,29.78521735,150.85,150.83,2.48048917]
[1749337696240,29.78521735,150.85,150.82,17.17033814]
[1749337696458,29.78521735,150.85,150.83,2.48048917]
[1749337696760,29.78521735,150.85,150.82,17.17033814]
[1749337696962,29.78521735,150.85,150.83,2.48050313]
[1749337697163,29.78521735,150.85,150.82,17.17033814]
[1749337697456,29.78521735,150.85,150.83,2.48050291]
[1749337697650,29.78521735,150.85,150.82,17.17033814]
[1749337699663,26.0,150.85,150.82,17.17033814]
[1749337699861,29.78521735,150.85,150.82,10.54]
[1749337704976,3.78521735,150.84,150.82,10.54]
[1749337716692,26.0,150.85,150.82,10.54]
[1749337716873,3.78521735,150.84,150.82,10.54]
[1749337719794,3.78521735,150.83,150.82,10.54]
[1749337721600,3.78521735,150.83,150.82,13.02005867]
[1749337721773,3.78521735,150.83,150.82,10.54]
[1749337723198,3.78521735,150.83,150.81,10.52]
[1749337724006,3.78521735,150.83,150.82,2.48174024]
[1749337724198,3.78521735,150.83,150.82,2.48174003]